[Event "*** Titled Tuesday Blitz"]
[Site "Chess.com"]
[Date "2020.05.12"]
[Round "3"]
[White "Maksimus1998"]
[Black "Boudicca64"]
[Result "1-0"]
[WhiteElo "2466"]
[BlackElo "2015"]
[TimeControl "180+1"]
[EndTime "10:28:36 PDT"]
[Termination "Maksimus1998 won on time"]

1. c4 {[%clk 0:03:00.9]} 1... e6 {[%clk 0:02:59.2]} 2. Nc3 {[%clk 0:03:00.3]}
2... d5 {[%clk 0:02:55.7]} 3. d4 {[%clk 0:03:00.1]} 3... Nf6 {[%clk 0:02:55.3]}
4. cxd5 {[%clk 0:03:00.3]} 4... exd5 {[%clk 0:02:56.2]} 5. Bg5 {[%clk
0:03:00.4]} 5... c6 {[%clk 0:02:56.5]} 6. e3 {[%clk 0:03:00.6]} 6... Qb6 {[%clk
0:02:56.9]} 7. Qd2 {[%clk 0:02:53.3]} 7... Ne4 {[%clk 0:02:55.2]} 8. Nxe4 {[%clk
0:02:53.3]} 8... dxe4 {[%clk 0:02:56.1]} 9. Ne2 {[%clk 0:02:53.9]} 9... Bb4
{[%clk 0:02:31]} 10. Nc3 {[%clk 0:02:53.5]} 10... O-O {[%clk 0:02:28.2]} 11. Be2
{[%clk 0:02:51.8]} 11... Bf5 {[%clk 0:02:21.4]} 12. O-O {[%clk 0:02:50.8]} 12...
h6 {[%clk 0:02:19.6]} 13. Bh4 {[%clk 0:02:44.5]} 13... Re8 {[%clk 0:02:18.7]}
14. a3 {[%clk 0:02:43.2]} 14... Bf8 {[%clk 0:02:19.1]} 15. b4 {[%clk 0:02:37.2]}
15... a5 {[%clk 0:02:16.4]} 16. Na4 {[%clk 0:02:36]} 16... Qc7 {[%clk
0:02:14.4]} 17. Bg3 {[%clk 0:02:28.7]} 17... Bd6 {[%clk 0:02:13.3]} 18. b5
{[%clk 0:02:26.4]} 18... Bxg3 {[%clk 0:02:11.6]} 19. fxg3 {[%clk 0:02:20.4]}
19... cxb5 {[%clk 0:01:59.3]} 20. Bxb5 {[%clk 0:02:03.6]} 20... Bd7 {[%clk
0:01:58.2]} 21. Rac1 {[%clk 0:02:03.4]} 21... Qd6 {[%clk 0:01:53.2]} 22. Bxd7
{[%clk 0:01:50.7]} 22... Nxd7 {[%clk 0:01:54.1]} 23. Nc5 {[%clk 0:01:51.1]}
23... Nxc5 {[%clk 0:01:49.5]} 24. Rxc5 {[%clk 0:01:52]} 24... b6 {[%clk
0:01:48.7]} 25. Rcf5 {[%clk 0:01:49.8]} 25... Ra7 {[%clk 0:01:43.1]} 26. a4
{[%clk 0:01:49.5]} 26... Qb4 {[%clk 0:01:07.3]} 27. Qa2 {[%clk 0:01:48.4]} 27...
Ree7 {[%clk 0:01:02]} 28. Rb5 {[%clk 0:01:47]} 28... Qc3 {[%clk 0:01:00.6]} 29.
Rb3 {[%clk 0:01:46.3]} 29... Qc6 {[%clk 0:00:58.4]} 30. Rb5 {[%clk 0:01:32.6]}
30... Qc3 {[%clk 0:00:57.4]} 31. Qb3 {[%clk 0:01:26]} 31... Qxb3 {[%clk
0:00:43.6]} 32. Rxb3 {[%clk 0:01:26.9]} 32... Reb7 {[%clk 0:00:42.3]} 33. Rfb1
{[%clk 0:01:25.5]} 33... Ra6 {[%clk 0:00:41.2]} 34. g4 {[%clk 0:01:25.6]} 34...
Kf8 {[%clk 0:00:39]} 35. Kf2 {[%clk 0:01:25.4]} 35... Ke7 {[%clk 0:00:39.1]} 36.
Kg3 {[%clk 0:01:26.1]} 36... g5 {[%clk 0:00:34.4]} 37. Rb5 {[%clk 0:01:23.1]}
37... f6 {[%clk 0:00:33.6]} 38. Rc1 {[%clk 0:01:16]} 38... Ra8 {[%clk
0:00:25.1]} 39. Rc6 {[%clk 0:01:14.9]} 39... Rab8 {[%clk 0:00:25.5]} 40. d5
{[%clk 0:01:07.9]} 40... Rd8 {[%clk 0:00:20]} 41. Re6+ {[%clk 0:01:07.2]} 41...
Kf7 {[%clk 0:00:19.6]} 42. Rxe4 {[%clk 0:01:07.2]} 42... Rc7 {[%clk 0:00:15.8]}
43. Re6 {[%clk 0:00:56.5]} 43... Re7 {[%clk 0:00:10]} 44. Rxe7+ {[%clk
0:00:53.8]} 44... Kxe7 {[%clk 0:00:10.1]} 45. e4 {[%clk 0:00:54.7]} 45... Rb8
{[%clk 0:00:09.5]} 46. Kf3 {[%clk 0:00:54.3]} 46... Kd6 {[%clk 0:00:10.4]} 47.
Ke3 {[%clk 0:00:54.6]} 47... Ke5 {[%clk 0:00:10.6]} 48. Rb2 {[%clk 0:00:53]}
48... Rb7 {[%clk 0:00:10.5]} 49. Rc2 {[%clk 0:00:50.2]} 49... b5 {[%clk
0:00:08.9]} 50. Rc6 {[%clk 0:00:49.1]} 50... Re7 {[%clk 0:00:09.1]} 51. axb5
{[%clk 0:00:48.8]} 51... a4 {[%clk 0:00:09.2]} 52. Ra6 {[%clk 0:00:47]} 52... f5
{[%clk 0:00:10.1]} 53. gxf5 {[%clk 0:00:46.9]} 53... a3 {[%clk 0:00:08.9]} 54.
Rxa3 {[%clk 0:00:46.5]} 54... Rc7 {[%clk 0:00:09.5]} 55. b6 {[%clk 0:00:45.6]}
1-0

[Event "*** Titled Tuesday Blitz"]
[Site "Chess.com"]
[Date "2020.05.12"]
[Round "3"]
[White "mishanick"]
[Black "mbojan"]
[Result "1-0"]
[WhiteElo "2969"]
[BlackElo "2671"]
[TimeControl "180+1"]
[EndTime "10:28:38 PDT"]
[Termination "mishanick won by resignation"]

1. d4 {[%clk 0:03:00.9]} 1... Nf6 {[%clk 0:02:59.3]} 2. c4 {[%clk 0:03:00.4]}
2... c5 {[%clk 0:02:59.3]} 3. d5 {[%clk 0:03:00.4]} 3... b5 {[%clk 0:02:59.1]}
4. cxb5 {[%clk 0:03:00.6]} 4... a6 {[%clk 0:02:59.4]} 5. bxa6 {[%clk 0:03:01.5]}
5... g6 {[%clk 0:02:59.7]} 6. Nc3 {[%clk 0:03:02]} 6... Bg7 {[%clk 0:03:00.1]}
7. e4 {[%clk 0:03:02.5]} 7... O-O {[%clk 0:03:00.6]} 8. Be2 {[%clk 0:03:02.7]}
8... Qa5 {[%clk 0:02:59.6]} 9. Bd2 {[%clk 0:03:02.9]} 9... Bxa6 {[%clk
0:02:59.8]} 10. e5 {[%clk 0:03:03.2]} 10... Ne8 {[%clk 0:02:58.1]} 11. Nf3
{[%clk 0:03:03.5]} 11... Bxe2 {[%clk 0:02:57.6]} 12. Qxe2 {[%clk 0:03:04.4]}
12... Qa6 {[%clk 0:02:58]} 13. h4 {[%clk 0:02:52.7]} 13... Qxe2+ {[%clk
0:02:56.3]} 14. Kxe2 {[%clk 0:02:47.4]} 14... d6 {[%clk 0:02:56.6]} 15. Bg5
{[%clk 0:02:10.4]} 15... Ra7 {[%clk 0:02:30]} 16. h5 {[%clk 0:02:07.6]} 16...
dxe5 {[%clk 0:02:25.1]} 17. hxg6 {[%clk 0:02:05.7]} 17... hxg6 {[%clk
0:02:20.4]} 18. Nd2 {[%clk 0:02:02.3]} 18... Nd6 {[%clk 0:02:17.1]} 19. Nde4
{[%clk 0:01:58.5]} 19... f6 {[%clk 0:02:09.8]} 20. Be3 {[%clk 0:01:56.5]} 20...
Nd7 {[%clk 0:01:41.7]} 21. Nxc5 {[%clk 0:01:54.1]} 21... Nxc5 {[%clk 0:01:40.8]}
22. Bxc5 {[%clk 0:01:55]} 22... Rc7 {[%clk 0:01:41.2]} 23. b4 {[%clk 0:01:37.2]}
23... Nb7 {[%clk 0:01:40.2]} 24. Nb5 {[%clk 0:01:36]} 24... Rd7 {[%clk
0:01:36.6]} 25. Rhd1 {[%clk 0:01:33]} 25... f5 {[%clk 0:01:26.4]} 26. a4 {[%clk
0:01:28.9]} 26... e4 {[%clk 0:01:26.3]} 27. Rac1 {[%clk 0:01:28.6]} 27... Rb8
{[%clk 0:01:19]} 28. Rc4 {[%clk 0:01:22.4]} 28... Kf7 {[%clk 0:01:15.8]} 29. Be3
{[%clk 0:01:09.8]} 29... Be5 {[%clk 0:01:13.8]} 30. g3 {[%clk 0:01:04.6]} 30...
Kf6 {[%clk 0:00:46.2]} 31. Rc6+ {[%clk 0:01:02.4]} 31... Kf7 {[%clk 0:00:46.1]}
32. Bb6 {[%clk 0:00:48.5]} 32... Nd8 {[%clk 0:00:28]} 33. Bxd8 {[%clk
0:00:46.7]} 33... Rdxd8 {[%clk 0:00:28.9]} 34. Re6 {[%clk 0:00:36.1]} 34... Bf6
{[%clk 0:00:17.1]} 35. Rd2 {[%clk 0:00:29.3]} 35... Rdc8 {[%clk 0:00:15.7]} 36.
Rc6 {[%clk 0:00:28.6]} 36... Rd8 {[%clk 0:00:16.2]} 37. d6 {[%clk 0:00:26.2]}
37... exd6 {[%clk 0:00:06.7]} 38. Nxd6+ {[%clk 0:00:26.1]} 38... Kg7 {[%clk
0:00:07.1]} 39. b5 {[%clk 0:00:25.1]} 39... Be5 {[%clk 0:00:06]} 40. Nc4 {[%clk
0:00:24.3]} 40... Rxd2+ {[%clk 0:00:06.9]} 41. Kxd2 {[%clk 0:00:24.9]} 41... Bf6
{[%clk 0:00:06.8]} 42. b6 {[%clk 0:00:24.5]} 42... Rd8+ {[%clk 0:00:07]} 43. Ke2
{[%clk 0:00:25]} 43... Ra8 {[%clk 0:00:05]} 44. a5 {[%clk 0:00:24.8]} 44... Bc3
{[%clk 0:00:04]} 45. b7 {[%clk 0:00:25.1]} 45... Rb8 {[%clk 0:00:04.5]} 46. a6
{[%clk 0:00:25.6]} 46... Bd4 {[%clk 0:00:05]} 47. Rc8 {[%clk 0:00:25.5]} 47...
Ba7 {[%clk 0:00:05.7]} 48. Rxb8 {[%clk 0:00:25.6]} 48... Bxb8 {[%clk 0:00:06.6]}
49. Na5 {[%clk 0:00:26.1]} 1-0

[Event "*** Titled Tuesday Blitz"]
[Site "Chess.com"]
[Date "2020.05.12"]
[Round "3"]
[White "FelixJoseYnojosa"]
[Black "NemtsevIgor"]
[Result "1-0"]
[WhiteElo "2601"]
[BlackElo "2288"]
[TimeControl "180+1"]
[EndTime "10:28:39 PDT"]
[Termination "FelixJoseYnojosa won by resignation"]

1. e4 {[%clk 0:03:00.8]} 1... c6 {[%clk 0:02:59.9]} 2. c4 {[%clk 0:03:01]} 2...
d5 {[%clk 0:03:00.1]} 3. cxd5 {[%clk 0:03:01.7]} 3... cxd5 {[%clk 0:03:00.4]} 4.
exd5 {[%clk 0:03:02.4]} 4... a6 {[%clk 0:03:00.4]} 5. Qb3 {[%clk 0:03:01.9]}
5... Nf6 {[%clk 0:02:59.1]} 6. Nc3 {[%clk 0:03:02.4]} 6... Nbd7 {[%clk 0:02:59]}
7. d4 {[%clk 0:03:02.2]} 7... b5 {[%clk 0:02:57.2]} 8. a4 {[%clk 0:02:59.5]}
8... b4 {[%clk 0:02:50.9]} 9. Qxb4 {[%clk 0:02:59]} 9... e6 {[%clk 0:02:51.2]}
10. Qb3 {[%clk 0:02:57.3]} 10... exd5 {[%clk 0:02:45.4]} 11. Nf3 {[%clk
0:02:50]} 11... Bd6 {[%clk 0:02:38.3]} 12. Bd3 {[%clk 0:02:49]} 12... O-O {[%clk
0:02:38.1]} 13. O-O {[%clk 0:02:49.1]} 13... Rb8 {[%clk 0:02:30]} 14. Qa2 {[%clk
0:02:48.7]} 14... Bb7 {[%clk 0:02:29.8]} 15. Bg5 {[%clk 0:02:48.4]} 15... Qb6
{[%clk 0:02:21.7]} 16. Rfe1 {[%clk 0:02:45.9]} 16... Ne4 {[%clk 0:02:13.6]} 17.
Nxe4 {[%clk 0:02:41.5]} 17... dxe4 {[%clk 0:02:13.8]} 18. Bxe4 {[%clk
0:02:42.1]} 18... Bxe4 {[%clk 0:02:13.7]} 19. Rxe4 {[%clk 0:02:42.9]} 19... Qxb2
{[%clk 0:02:13.8]} 20. Qxb2 {[%clk 0:02:43.7]} 20... Rxb2 {[%clk 0:02:13.8]} 21.
a5 {[%clk 0:02:38]} 21... h6 {[%clk 0:02:10.8]} 22. Be3 {[%clk 0:02:36]} 22...
Nf6 {[%clk 0:02:09.5]} 23. Rh4 {[%clk 0:02:34.9]} 23... Rfb8 {[%clk 0:02:01.3]}
24. g3 {[%clk 0:02:30.7]} 24... Rb1+ {[%clk 0:02:01.7]} 25. Rxb1 {[%clk
0:02:30.8]} 25... Rxb1+ {[%clk 0:02:02.3]} 26. Kg2 {[%clk 0:02:31.5]} 26... Ra1
{[%clk 0:02:02.2]} 27. Bd2 {[%clk 0:02:31.9]} 27... Bc7 {[%clk 0:01:56.5]} 28.
d5 {[%clk 0:02:24.3]} 28... Nxd5 {[%clk 0:01:34.2]} 29. Rh5 {[%clk 0:02:24.2]}
29... Nf6 {[%clk 0:01:27.7]} 30. Rc5 {[%clk 0:02:23.9]} 30... Ne8 {[%clk
0:01:12.7]} 31. Nd4 {[%clk 0:02:06.6]} 31... Ra2 {[%clk 0:01:06.8]} 32. Nc2
{[%clk 0:01:59.3]} 32... f6 {[%clk 0:01:00.4]} 33. Bb4 {[%clk 0:01:58.8]} 33...
Kf7 {[%clk 0:00:55.1]} 34. Be1 {[%clk 0:01:54.5]} 34... Ke6 {[%clk 0:00:44.8]}
35. Nd4+ {[%clk 0:01:53.2]} 35... Kd7 {[%clk 0:00:42.4]} 36. h4 {[%clk
0:01:48.3]} 36... Nd6 {[%clk 0:00:39.3]} 37. h5 {[%clk 0:01:43.2]} 37... Nb7
{[%clk 0:00:38.2]} 38. Rd5+ {[%clk 0:01:43.1]} 38... Kc8 {[%clk 0:00:35.3]} 39.
Ne6 {[%clk 0:01:38.8]} 39... Bxa5 {[%clk 0:00:32.5]} 40. Bxa5 {[%clk 0:01:34.8]}
40... Nxa5 {[%clk 0:00:32.8]} 41. Nxg7 {[%clk 0:01:30.4]} 41... Nc6 {[%clk
0:00:28.1]} 42. Nf5 {[%clk 0:01:29.2]} 42... a5 {[%clk 0:00:28.5]} 43. Nxh6
{[%clk 0:01:28.4]} 43... a4 {[%clk 0:00:29]} 44. Nf5 {[%clk 0:01:27.9]} 44... a3
{[%clk 0:00:28.8]} 45. h6 {[%clk 0:01:28]} 45... Re2 {[%clk 0:00:26.9]} 46. Rd3
{[%clk 0:01:27.4]} 46... a2 {[%clk 0:00:26.4]} 47. Ra3 {[%clk 0:01:27.6]} 47...
Re8 {[%clk 0:00:24.4]} 48. Rxa2 {[%clk 0:01:27.3]} 48... Rh8 {[%clk 0:00:24.6]}
49. g4 {[%clk 0:01:24.7]} 49... Kd7 {[%clk 0:00:24.6]} 50. f4 {[%clk 0:01:24.9]}
50... Nb4 {[%clk 0:00:23.4]} 51. Rd2+ {[%clk 0:01:24.7]} 51... Ke6 {[%clk
0:00:22.2]} 52. Rd6+ {[%clk 0:01:24.7]} 52... Kf7 {[%clk 0:00:22.4]} 53. Rd7+
{[%clk 0:01:24.3]} 53... Ke6 {[%clk 0:00:20.2]} 54. Re7+ {[%clk 0:01:24.5]}
54... Kd5 {[%clk 0:00:20.5]} 55. g5 {[%clk 0:01:22.7]} 55... fxg5 {[%clk
0:00:20.4]} 56. fxg5 {[%clk 0:01:23]} 56... Nc6 {[%clk 0:00:20.8]} 57. Re1
{[%clk 0:01:04]} 57... Ne5 {[%clk 0:00:20.4]} 58. Kg3 {[%clk 0:01:03]} 58... Ng6
{[%clk 0:00:19.6]} 59. Ne7+ {[%clk 0:01:00.5]} 59... Nxe7 {[%clk 0:00:17.9]} 60.
Rxe7 {[%clk 0:01:01.2]} 60... Ra8 {[%clk 0:00:18.1]} 61. g6 {[%clk 0:01:00]}
61... Kd6 {[%clk 0:00:18.5]} 62. Re1 {[%clk 0:00:59.5]} 62... Ra4 {[%clk
0:00:18.3]} 63. g7 {[%clk 0:00:59.5]} 63... Ra8 {[%clk 0:00:17.7]} 64. h7 {[%clk
0:00:59.7]} 1-0

[Event "*** Titled Tuesday Blitz"]
[Site "Chess.com"]
[Date "2020.05.12"]
[Round "3"]
[White "Charlottemillard17"]
[Black "ulkaf961"]
[Result "0-1"]
[WhiteElo "1402"]
[BlackElo "2194"]
[TimeControl "180+1"]
[EndTime "10:28:39 PDT"]
[Termination "ulkaf961 won on time"]

1. e4 {[%clk 0:03:00.9]} 1... e6 {[%clk 0:02:58.6]} 2. d4 {[%clk 0:02:59.4]}
2... d5 {[%clk 0:02:57.8]} 3. Nd2 {[%clk 0:02:58.9]} 3... Be7 {[%clk 0:02:55.5]}
4. Bd3 {[%clk 0:02:57.4]} 4... c5 {[%clk 0:02:54.6]} 5. c3 {[%clk 0:02:56.2]}
5... Nf6 {[%clk 0:02:54.1]} 6. Ne2 {[%clk 0:02:49.7]} 6... cxd4 {[%clk
0:02:51.4]} 7. cxd4 {[%clk 0:02:45]} 7... dxe4 {[%clk 0:02:50.5]} 8. Nxe4 {[%clk
0:02:42.1]} 8... O-O {[%clk 0:02:48.9]} 9. N2g3 {[%clk 0:02:37.9]} 9... Qxd4
{[%clk 0:02:43.2]} 10. Ng5 {[%clk 0:02:20.6]} 10... Bb4+ {[%clk 0:02:34.8]} 11.
Kf1 {[%clk 0:02:12.9]} 11... Nc6 {[%clk 0:02:30.5]} 12. Be3 {[%clk 0:01:58.4]}
12... Qe5 {[%clk 0:02:25.9]} 13. Nf3 {[%clk 0:01:46.7]} 13... Qa5 {[%clk
0:02:22.1]} 14. a3 {[%clk 0:01:41.9]} 14... Be7 {[%clk 0:02:20.2]} 15. b4 {[%clk
0:01:38.6]} 15... Qc7 {[%clk 0:02:17.9]} 16. Rc1 {[%clk 0:01:23.5]} 16... a6
{[%clk 0:02:10.2]} 17. Ne4 {[%clk 0:01:07.1]} 17... Rd8 {[%clk 0:02:03.9]} 18.
Qc2 {[%clk 0:01:05.3]} 18... h6 {[%clk 0:01:59.4]} 19. Nxf6+ {[%clk 0:00:57.4]}
19... Bxf6 {[%clk 0:01:58]} 20. g3 {[%clk 0:00:56.8]} 20... Qd6 {[%clk
0:01:54.8]} 21. Rd1 {[%clk 0:00:51.8]} 21... Qe7 {[%clk 0:01:44.7]} 22. Bc5
{[%clk 0:00:49.3]} 22... Qe8 {[%clk 0:01:43.8]} 23. Kg2 {[%clk 0:00:44.5]} 23...
Bd7 {[%clk 0:01:42.5]} 24. Rhe1 {[%clk 0:00:36.4]} 24... Rdc8 {[%clk 0:01:36.2]}
25. Qd2 {[%clk 0:00:30.4]} 25... Ne7 {[%clk 0:01:27.2]} 26. Bh7+ {[%clk
0:00:28.1]} 26... Kh8 {[%clk 0:01:25.4]} 27. Qxd7 {[%clk 0:00:26.8]} 27... Kxh7
{[%clk 0:01:21.1]} 28. Qd3+ {[%clk 0:00:24.3]} 28... Kh8 {[%clk 0:01:17.6]} 29.
Qb3 {[%clk 0:00:20.5]} 29... Qc6 {[%clk 0:01:10]} 30. Kg1 {[%clk 0:00:19.2]}
30... b6 {[%clk 0:01:01]} 31. Bxe7 {[%clk 0:00:17.3]} 31... Bxe7 {[%clk
0:00:59.9]} 32. Ne5 {[%clk 0:00:17.2]} 32... Qe8 {[%clk 0:00:59.4]} 33. Nd7
{[%clk 0:00:16]} 33... Rc6 {[%clk 0:00:53.4]} 34. Ne5 {[%clk 0:00:14.9]} 34...
Rd6 {[%clk 0:00:51.8]} 35. Rxd6 {[%clk 0:00:13.1]} 35... Bxd6 {[%clk 0:00:50.4]}
36. Nf3 {[%clk 0:00:10.4]} 36... Rc8 {[%clk 0:00:49.6]} 37. Qd3 {[%clk
0:00:08.2]} 37... Be7 {[%clk 0:00:46.1]} 38. Qxa6 {[%clk 0:00:07.8]} 38... Ra8
{[%clk 0:00:36.5]} 39. Qd3 {[%clk 0:00:07.2]} 39... Rd8 {[%clk 0:00:34.3]} 40.
Qc4 {[%clk 0:00:05.7]} 40... Bf6 {[%clk 0:00:33.3]} 41. Qa6 {[%clk 0:00:03.4]}
41... Qc6 {[%clk 0:00:32.9]} 42. Qd3 {[%clk 0:00:02.1]} 42... Rxd3 {[%clk
0:00:32.3]} 0-1

[Event "*** Titled Tuesday Blitz"]
[Site "Chess.com"]
[Date "2020.05.12"]
[Round "3"]
[White "Chuchofrio1"]
[Black "CyberneticLion"]
[Result "0-1"]
[WhiteElo "2236"]
[BlackElo "2540"]
[TimeControl "180+1"]
[EndTime "10:28:39 PDT"]
[Termination "CyberneticLion won by checkmate"]

1. e4 {[%clk 0:02:58.2]} 1... e5 {[%clk 0:02:54.4]} 2. Nf3 {[%clk 0:02:57.3]}
2... Nc6 {[%clk 0:02:45.2]} 3. Bc4 {[%clk 0:02:56.2]} 3... Bc5 {[%clk
0:02:44.8]} 4. O-O {[%clk 0:02:55]} 4... Nf6 {[%clk 0:02:44.5]} 5. d3 {[%clk
0:02:54]} 5... O-O {[%clk 0:02:42.7]} 6. Bg5 {[%clk 0:02:52.8]} 6... h6 {[%clk
0:02:42.7]} 7. Be3 {[%clk 0:02:51.2]} 7... Bb6 {[%clk 0:02:39.3]} 8. Nbd2 {[%clk
0:02:51.2]} 8... d5 {[%clk 0:02:38.4]} 9. exd5 {[%clk 0:02:50.8]} 9... Nxd5
{[%clk 0:02:39.3]} 10. Bxb6 {[%clk 0:02:51.2]} 10... axb6 {[%clk 0:02:39.8]} 11.
Re1 {[%clk 0:02:50]} 11... Re8 {[%clk 0:02:33.4]} 12. Nf1 {[%clk 0:02:50]} 12...
Bg4 {[%clk 0:02:31.4]} 13. Bxd5 {[%clk 0:02:34.7]} 13... Qxd5 {[%clk 0:02:29.1]}
14. Ne3 {[%clk 0:02:32.7]} 14... Bxf3 {[%clk 0:02:20.5]} 15. Nxd5 {[%clk
0:02:32.3]} 15... Bxd1 {[%clk 0:02:20.6]} 16. Rexd1 {[%clk 0:02:27.4]} 16...
Rac8 {[%clk 0:02:19.2]} 17. a3 {[%clk 0:02:24.4]} 17... f6 {[%clk 0:02:17]} 18.
Re1 {[%clk 0:02:21.5]} 18... Kf7 {[%clk 0:02:10.8]} 19. c3 {[%clk 0:02:17]}
19... Red8 {[%clk 0:02:10.2]} 20. c4 {[%clk 0:02:07.5]} 20... Ne7 {[%clk
0:02:02.2]} 21. Nxe7 {[%clk 0:02:06.4]} 21... Kxe7 {[%clk 0:02:03.1]} 22. Rad1
{[%clk 0:02:06.7]} 22... Rd4 {[%clk 0:01:57.4]} 23. Re4 {[%clk 0:02:02.3]} 23...
Rcd8 {[%clk 0:01:51.4]} 24. Rxd4 {[%clk 0:02:01.7]} 24... Rxd4 {[%clk
0:01:49.6]} 25. Kf1 {[%clk 0:02:02.1]} 25... Kd6 {[%clk 0:01:46.9]} 26. Ke2
{[%clk 0:02:01.7]} 26... Kc5 {[%clk 0:01:47.1]} 27. b4+ {[%clk 0:02:01.7]} 27...
Kc6 {[%clk 0:01:47]} 28. Ke3 {[%clk 0:02:01.6]} 28... b5 {[%clk 0:01:46.7]} 29.
c5 {[%clk 0:01:59]} 29... Kd5 {[%clk 0:01:37.1]} 30. f3 {[%clk 0:01:57.7]} 30...
Ke6 {[%clk 0:01:34.4]} 31. Rc1 {[%clk 0:01:50.4]} 31... f5 {[%clk 0:01:31.4]}
32. Rc3 {[%clk 0:01:45.4]} 32... g5 {[%clk 0:01:27.2]} 33. Rc2 {[%clk
0:01:39.8]} 33... Rd8 {[%clk 0:01:26.8]} 34. Ra2 {[%clk 0:01:35.2]} 34... Ra8
{[%clk 0:01:26.2]} 35. Ra1 {[%clk 0:01:34.1]} 35... Kd5 {[%clk 0:01:26.2]} 36.
Ra2 {[%clk 0:01:26.1]} 36... Ra6 {[%clk 0:01:23.9]} 37. Ra1 {[%clk 0:01:20.8]}
37... h5 {[%clk 0:01:16]} 38. h3 {[%clk 0:01:12.8]} 38... f4+ {[%clk 0:01:01.6]}
39. Kd2 {[%clk 0:01:11.2]} 39... Kd4 {[%clk 0:01:02.3]} 40. Ra2 {[%clk
0:01:00.9]} 40... g4 {[%clk 0:01:02.2]} 41. hxg4 {[%clk 0:00:59.6]} 41... hxg4
{[%clk 0:01:03.1]} 42. fxg4 {[%clk 0:00:48.2]} 42... Rg6 {[%clk 0:01:03.4]} 43.
Ra1 {[%clk 0:00:17.1]} 43... Rxg4 {[%clk 0:01:02]} 44. Rg1 {[%clk 0:00:17.6]}
44... Rg3 {[%clk 0:01:01.5]} 45. Ke2 {[%clk 0:00:16.8]} 45... f3+ {[%clk
0:00:56.2]} 46. Kf2 {[%clk 0:00:16.1]} 46... Rxg2+ {[%clk 0:00:56.3]} 47. Rxg2
{[%clk 0:00:16]} 47... fxg2 {[%clk 0:00:57.2]} 48. Kxg2 {[%clk 0:00:16.9]} 48...
Kxd3 {[%clk 0:00:57.7]} 49. Kf3 {[%clk 0:00:17.8]} 49... e4+ {[%clk 0:00:57.8]}
50. Kf2 {[%clk 0:00:18.7]} 50... Kd2 {[%clk 0:00:58.4]} 51. a4 {[%clk
0:00:17.3]} 51... e3+ {[%clk 0:00:59.3]} 52. Kf3 {[%clk 0:00:17.3]} 52... bxa4
{[%clk 0:00:59.2]} 53. b5 {[%clk 0:00:17]} 53... e2 {[%clk 0:00:59.6]} 54. Ke4
{[%clk 0:00:17.5]} 54... e1=Q+ {[%clk 0:00:59.4]} 55. Kd5 {[%clk 0:00:18.4]}
55... Qe8 {[%clk 0:00:54]} 56. b6 {[%clk 0:00:15.9]} 56... Qc6+ {[%clk
0:00:52.8]} 57. Kc4 {[%clk 0:00:15.8]} 57... cxb6 {[%clk 0:00:53.2]} 58. Kb4
{[%clk 0:00:15.1]} 58... Qxc5+ {[%clk 0:00:52.7]} 59. Kxa4 {[%clk 0:00:14.9]}
59... b5+ {[%clk 0:00:49.6]} 60. Kb3 {[%clk 0:00:15.8]} 60... Qc4+ {[%clk
0:00:48.9]} 61. Kb2 {[%clk 0:00:15.9]} 61... Qb4+ {[%clk 0:00:48.6]} 62. Ka1
{[%clk 0:00:14]} 62... Kc2 {[%clk 0:00:49.5]} 63. Ka2 {[%clk 0:00:14.8]} 63...
Qa4# {[%clk 0:00:50.4]} 0-1

[Event "*** Titled Tuesday Blitz"]
[Site "Chess.com"]
[Date "2020.05.12"]
[Round "3"]
[White "anon102030"]
[Black "GianmarcoVaR"]
[Result "0-1"]
[WhiteElo "2735"]
[BlackElo "2564"]
[TimeControl "180+1"]
[EndTime "10:28:42 PDT"]
[Termination "GianmarcoVaR won by checkmate"]

1. e4 {[%clk 0:03:00.9]} 1... c6 {[%clk 0:02:58.3]} 2. d3 {[%clk 0:03:00.9]}
2... d5 {[%clk 0:02:58.3]} 3. Nd2 {[%clk 0:03:01.6]} 3... e5 {[%clk 0:02:57.7]}
4. g3 {[%clk 0:03:01.2]} 4... Nf6 {[%clk 0:02:57.1]} 5. Bg2 {[%clk 0:03:01.8]}
5... Bd6 {[%clk 0:02:56.8]} 6. Ngf3 {[%clk 0:03:01.4]} 6... O-O {[%clk
0:02:56.9]} 7. O-O {[%clk 0:03:01.5]} 7... Re8 {[%clk 0:02:56.2]} 8. b3 {[%clk
0:03:01.8]} 8... Bg4 {[%clk 0:02:54.4]} 9. h3 {[%clk 0:02:58.9]} 9... Bh5 {[%clk
0:02:54.2]} 10. Bb2 {[%clk 0:02:54.3]} 10... Nbd7 {[%clk 0:02:52.1]} 11. g4
{[%clk 0:02:50.2]} 11... Bg6 {[%clk 0:02:51.8]} 12. Qe2 {[%clk 0:02:50.9]} 12...
Qc7 {[%clk 0:02:45]} 13. Nh4 {[%clk 0:02:51]} 13... dxe4 {[%clk 0:02:41.2]} 14.
dxe4 {[%clk 0:02:50]} 14... Nc5 {[%clk 0:02:39]} 15. Nf5 {[%clk 0:02:45.9]}
15... Bf8 {[%clk 0:02:38.1]} 16. a4 {[%clk 0:02:40.1]} 16... Ne6 {[%clk
0:02:34.5]} 17. Nc4 {[%clk 0:02:35.4]} 17... Nd7 {[%clk 0:02:33.3]} 18. Rfd1
{[%clk 0:02:33.2]} 18... f6 {[%clk 0:02:23.4]} 19. Bf1 {[%clk 0:02:23.7]} 19...
Red8 {[%clk 0:02:16.6]} 20. Ncd6 {[%clk 0:02:16.1]} 20... Ndc5 {[%clk
0:02:15.4]} 21. Nc4 {[%clk 0:01:58.3]} 21... Nf4 {[%clk 0:02:14.6]} 22. Qf3
{[%clk 0:01:58.3]} 22... Nce6 {[%clk 0:02:14.7]} 23. h4 {[%clk 0:01:56.4]} 23...
Bf7 {[%clk 0:02:14.5]} 24. Ng3 {[%clk 0:01:46.8]} 24... Ng6 {[%clk 0:01:58.3]}
25. Nf5 {[%clk 0:01:37.8]} 25... Ngf4 {[%clk 0:01:58.7]} 26. Rxd8 {[%clk
0:01:27.4]} 26... Rxd8 {[%clk 0:01:58]} 27. Rd1 {[%clk 0:01:28.3]} 27... Bc5
{[%clk 0:01:38.7]} 28. Bc1 {[%clk 0:01:22.8]} 28... a6 {[%clk 0:01:29.7]} 29.
Be3 {[%clk 0:01:17]} 29... b5 {[%clk 0:01:24.9]} 30. axb5 {[%clk 0:01:11.5]}
30... axb5 {[%clk 0:01:24.3]} 31. Bxc5 {[%clk 0:00:59.8]} 31... Nxc5 {[%clk
0:01:24.2]} 32. Ncd6 {[%clk 0:00:59.8]} 32... Be6 {[%clk 0:00:55.4]} 33. Qe3
{[%clk 0:00:57.8]} 33... Bxf5 {[%clk 0:00:51.1]} 34. Qxc5 {[%clk 0:00:53.1]}
34... Bxg4 {[%clk 0:00:51.1]} 35. Nxb5 {[%clk 0:00:48.6]} 35... cxb5 {[%clk
0:00:15.2]} 36. Qxc7 {[%clk 0:00:46.6]} 36... Rxd1 {[%clk 0:00:15.7]} 37. Qb8+
{[%clk 0:00:19.8]} 37... Kf7 {[%clk 0:00:15.3]} 38. Qxb5 {[%clk 0:00:11.6]}
38... Be2 {[%clk 0:00:09.5]} 39. Qb7+ {[%clk 0:00:10.1]} 39... Kg6 {[%clk
0:00:08.9]} 40. c4 {[%clk 0:00:10.1]} 40... Rxf1+ {[%clk 0:00:08.2]} 41. Kh2
{[%clk 0:00:11]} 41... Rxf2+ {[%clk 0:00:04.9]} 42. Kh1 {[%clk 0:00:02.9]} 42...
Bf3+ {[%clk 0:00:03.9]} 43. Kg1 {[%clk 0:00:03.1]} 43... Nh3# {[%clk 0:00:04.5]}
0-1